fUSD/lending_fUSD_20240526
["ID","MTS","AMOUNT","RATE_DAILY","PERIOD"]
[327951229,1716695432220,-150.58,0.0001299,2]
[327951230,1716695432229,-150.58,0.0001299,2]
[327951231,1716695432239,-150.58,0.0001299,2]
[327951232,1716695432249,-150.58,0.0001299,2]
[327951233,1716695432259,-150.58,0.0001299,2]
[327951234,1716695432268,-150.58,0.0001299,2]
[327951235,1716695432277,-150.58,0.0001299,2]
[327951236,1716695432287,-150.58,0.0001299,2]
[327951237,1716695432296,-150.58,0.0001299,2]
[327951238,1716695432306,-150.58,0.0001299,2]
[327951239,1716695432315,-150.58,0.0001299,2]
[327951240,1716695432324,-150.58,0.0001299,2]
[327951241,1716695432334,-150.58,0.0001299,2]
[327951242,1716695432343,-150.58,0.0001299,2]
[327951243,1716695432354,-150.58,0.0001299,2]
[327951244,1716695432365,-150.58,0.0001299,2]
[327951245,1716695432374,-150.58,0.0001299,2]
[327951246,1716695432382,-150.58,0.0001299,2]
[327951247,1716695432391,-150.58,0.0001299,2]
[327951248,1716695432401,-150.58,0.0001299,2]
[327951249,1716695432410,-150.58,0.0001299,2]
[327951251,1716695432420,-167159.0290231,0.00013,2]
[327951252,1716695432435,-60092.82223061,0.00013,2]
[327951253,1716695432452,-54402.93726456,0.00013,2]
[327951254,1716695432464,-29994.67401682,0.00013,2]
[327951255,1716695432476,-614.7279758,0.00013,2]
[327951256,1716695432487,-428.101543,0.00013,2]
[327951257,1716695432498,-658.25,0.00013,2]
[327951258,1716695432517,-4321.14263448,0.00013,2]
[327951259,1716695432528,-460.43123519,0.00013,2]
[327951260,1716695432539,-3019.08051024,0.00013,2]
[327951261,1716695432555,-760.55939495,0.00013,2]
[327951262,1716695432566,-468.05853118,0.00013,2]
[327951263,1716695432581,-385.01912969,0.00013,2]
[327951265,1716695438071,-1025.93346629,0.00013,2]
[327951266,1716695438083,-2084.0327375,0.00013,2]
[327951267,1716695438094,-2007.98320904,0.00013,2]
[327951268,1716695438106,-2586.70432895,0.00013,2]
[327951269,1716695438134,-785.60005,0.00013,2]
[327951270,1716695438145,-1044.28056317,0.00013,2]
[327951271,1716695438155,-1086.02090981,0.00013,2]
[327951272,1716695438322,-15262.06452375,0.00013,2]
[327951276,1716695440704,-870.60999909,0.00013,2]
[327951277,1716695441284,-3464.1329812,0.00013,2]
[327951278,1716695441462,-443.43736833,0.00013,2]
[327951279,1716695441475,-1523.68473028,0.00013,2]
[327951280,1716695441525,-7535.79305219,0.00013,2]
[327951291,1716695443224,-1245.4,0.00013,2]
[327951315,1716695443839,-567.72161186,0.00013,2]
[327951318,1716695443852,-182393.88628453,0.00013,2]
[327951368,1716695446334,-392.67559406,0.00013,2]
[327951378,1716695586068,163.86,0.00028227,120]
[327951390,1716696632262,-155.0,0.00012898,2]
[327951391,1716696632272,-1897.43174259,0.00012898,2]
[327951392,1716696632282,-163.61427894,0.00012899,2]
[327951393,1716696632294,-664.65409649,0.00012899,2]
[327951394,1716696632304,-1626.64590366,0.000129,2]
[327951395,1716696632315,-962.47257914,0.000129,2]
[327951396,1716696632335,-5311.8390172,0.000129,2]
[327951397,1716696632344,-1149.92148333,0.000129,2]
[327951398,1716696632353,-589.76090446,0.000129,2]
[327951399,1716696632363,-320.65170705,0.000129,2]
[327951400,1716696632372,-566.03742412,0.000129,2]
[327951401,1716696632381,-827.76377695,0.000129,2]
[327951402,1716696632393,-65.83527751,0.000129,2]
[327951403,1716696632403,-2819.25183347,0.00012998,2]
[327951404,1716696632412,-179.55544558,0.00012998,2]
[327951405,1716696632422,-1303.57519107,0.00012998,2]
[327951406,1716696632431,-205.72763628,0.00012998,2]
[327951407,1716696632441,-3968.95460609,0.00012999,2]
[327951408,1716696632461,-4124.89055274,0.00012999,2]
[327951409,1716696632472,-664.03948097,0.00012999,2]
[327951410,1716696632493,-3002.23633276,0.00012999,2]
[327951411,1716696632504,-9313.21597719,0.00012999,2]
[327951412,1716696632551,-364.18813852,0.00012999,2]
[327951413,1716696632563,-1087.10900317,0.00012999,2]
[327951414,1716696632608,-1521.76221221,0.00012999,2]
[327951415,1716696632665,-461.68774918,0.00012999,2]
[327951416,1716696632678,-3749.66154191,0.00012999,2]
[327951433,1716696638338,-1002.43707131,0.00012999,2]
[327951434,1716696638350,-996.73981662,0.00012999,2]
[327951435,1716696638394,-603.45575644,0.00012999,2]
[327951436,1716696638408,-910.60655848,0.00012999,2]
[327951437,1716696638451,-7283.51905851,0.00012999,2]
[327951438,1716696638463,-7768.1384,0.00012999,2]
[327951439,1716696638475,-3706.99583476,0.00012999,2]
[327951440,1716696638484,-3439.29796524,0.00013,2]
[327951441,1716696638495,-18261.65070178,0.00013,2]
[327951442,1716696638506,-573.2828905,0.00013,2]
[327951443,1716696638518,-358.33485164,0.00013,2]
[327951444,1716696638534,-3791.13332218,0.00013,2]
[327951445,1716696638566,-396.22491781,0.00013,2]
[327951446,1716696638578,-7944.81792,0.00013,2]
[327951447,1716696638623,-672.57,0.00013,2]
[327951448,1716696638681,-1313671.48702499,0.00013,2]
[327951449,1716696638693,-973.51784588,0.00013,2]
[327951450,1716696640721,-652.20074213,0.00013,2]
[327951451,1716696640732,-617.42097586,0.00013,2]
[327951452,1716696640776,-2339.19925392,0.00013,2]
[327951453,1716696640787,-688.15196471,0.00013,2]
[327951454,1716696640834,-1163.68068873,0.00013,2]
[327951455,1716696640847,-6708.41443121,0.00013,2]
[327951456,1716696640891,-46950.5185435,0.00013,2]
[327951457,1716696640902,-495.28604812,0.00013,2]
[327951458,1716696640914,-680.51216495,0.00013,2]
[327951459,1716696640948,-7376.95188826,0.00013,2]
[327951460,1716696640959,-505.53116172,0.00013,2]
[327951461,1716696641380,-631.33700009,0.00013,2]
[327951462,1716696641391,-345.59999998,0.00013,2]
[327951463,1716696641436,-175.747394,0.00012933,2]
[327951464,1716696641446,-213.98260525,0.00013,2]
[327951465,1716696641492,-339.25813426,0.00013,2]
[327951466,1716696641504,-895.25898204,0.00013,2]
[327951467,1716696641550,-959.199,0.00013,2]
[327951469,1716696643271,-1812.0405461,0.00013,2]
[327951481,1716696643766,-3892.0013106,0.00013,2]
[327951484,1716696643778,-3382.0,0.00013,2]
[327951486,1716696643790,-4540.0,0.00013,2]
[327951488,1716696643800,-608355.48555652,0.00013,2]
[327951490,1716696643812,-489.23716,0.00013,2]
[327951492,1716696643823,-736.37395775,0.00013,2]
[327951494,1716696643834,-154679.11187021,0.00013,2]
[327951497,1716696643847,-1066.32182804,0.00013,2]
[327951499,1716696643858,-582.270009,0.00013,2]
[327951561,1716696646311,-718.83200006,0.00013,2]
[327951563,1716696667648,424.8893402,0.00011698,2]
[327951564,1716696673358,2554.05859677,9.75e-05,2]
[327951565,1716696708925,554.41615953,0.0001,2]
[327951566,1716696711504,2613.47592032,0.00012,2]
[327951567,1716696716118,293.42427185,9.75e-05,2]
[327951568,1716696716164,290.46453198,9.75e-05,2]
[327951569,1716696741443,961.5864874,9.263e-05,2]
[327951571,1716696769620,1299.0,0.00031,120]
[327951572,1716697264798,23900.0,0.00011962,2]
[327951573,1716697289335,6965.69,0.00011953,2]
[327951574,1716697316746,1000.0,0.00011961,2]
[327951575,1716697328230,620.7,9.933e-05,2]
[327951576,1716697392374,9821.29469195,9.933e-05,2]
[327951577,1716697392400,5000.0,9.933e-05,2]
[327951578,1716697392420,5000.0,9.933e-05,2]
[327951579,1716697392443,5000.0,9.933e-05,2]
[327951580,1716697392465,5000.0,9.933e-05,2]
[327951581,1716697392485,5000.0,9.933e-05,2]
[327951582,1716697392512,1300.0,9.933e-05,2]
[327951583,1716697392543,262593.34727965,9.933e-05,2]
[327951584,1716697392568,14731.87524966,9.933e-05,2]
[327951585,1716697397814,155.0,9.932e-05,2]
[327951586,1716697411371,2018.38117384,7.45e-05,2]
[327951589,1716697801920,17599.78912917,7.45e-05,2]
[327951590,1716697812417,535743.13267442,7.45e-05,2]
[327951591,1716697817850,20079.281755,7.45e-05,2]
[327951592,1716697821582,18734.89090925,7.45e-05,2]
[327951597,1716697831513,-155.0,0.00011234,2]
[327951598,1716697831523,-344.8307424,0.00011235,2]
[327951599,1716697831532,-1897.43174259,0.00011236,2]
[327951600,1716697831542,-803.15,0.00011237,2]
[327951601,1716697831551,-155.0,0.00011289,2]
[327951602,1716697831560,-156.28621988,0.0001129,2]
[327951603,1716697831569,-500.0,0.00011291,2]
[327951604,1716697831578,-43345.87584374,0.000113,2]
[327951605,1716697831588,-150.0,0.000113,2]
[327951606,1716697831597,-35402.54232857,0.00011301,2]
[327951607,1716697831606,-22212.42,0.00011302,2]
[327951608,1716697831615,-2564.66,0.00011331,2]
[327951609,1716697831623,-694.0,0.00011334,2]
[327951610,1716697831634,-250.0,0.00011335,2]
[327951611,1716697831643,-1139.65,0.00011518,2]
[327951612,1716697831652,-160.45,0.00011518,2]
[327951613,1716697831662,-1009.78,0.00011528,2]
[327951614,1716697831671,-1245.97765168,0.00011576,2]
[327951615,1716697831680,-10000.0,0.00011579,2]
[327951616,1716697831689,-834.06,0.00011646,2]
[327951617,1716697831699,-157.99,0.00011733,2]
[327951618,1716697831707,-200.0,0.00011758,2]
[327951619,1716697831717,-250.0,0.00011799,2]
[327951620,1716697831727,-187.61,0.00011799,2]
[327951621,1716697831737,-338.57,0.00011834,2]
[327951622,1716697831748,-160.74,0.00012143,2]
[327951623,1716697831757,-620.7,0.00012197,2]
[327951624,1716697831767,-3871.49,0.00012243,2]
[327951625,1716697831776,-157.99,0.00012345,2]
[327951626,1716697831786,-210.0,0.0001243,2]
[327951627,1716697831795,-167.01,0.00012648,2]
[327951628,1716697831805,-14644.9164,0.00012898,2]
[327951629,1716697831814,-10400.1911,0.000129,2]
[327951630,1716697831823,-20365.39,0.000129,2]
[327951631,1716697831833,-595.73270298,0.000129,2]
[327951632,1716697831844,-151.02,0.0001299,2]
[327951633,1716697831853,-195.1689354,0.00012996,2]
[327951634,1716697831863,-162.67609622,0.00012998,2]
[327951635,1716697831872,-1276.5984503,0.00012998,2]
[327951636,1716697831883,-1180.356749,0.00012998,2]
[327951637,1716697831892,-2024.76145576,0.00012998,2]
[327951638,1716697831902,-406.33881685,0.00012998,2]
[327951639,1716697831911,-5581.77449153,0.00012998,2]
[327951640,1716697831920,-210.87308784,0.00012998,2]
[327951641,1716697831931,-10945.59975113,0.00012998,2]
[327951642,1716697831941,-155.0,0.00012998,2]
[327951643,1716697831950,-2330.40901735,0.00012998,2]
[327951644,1716697831959,-327.89530731,0.00012998,2]
[327951645,1716697831968,-155.24451187,0.00012998,2]
[327951646,1716697831977,-155.15990865,0.00012998,2]
[327951647,1716697831987,-1381.93423711,0.00012998,2]
[327951648,1716697831997,-2188.02281065,0.00012999,2]
[327951649,1716697832011,-1000.0,0.00012999,2]
[327951650,1716697832020,-3010.74416602,0.00012999,2]
[327951651,1716697832030,-207.58824107,0.00012999,2]
[327951652,1716697832039,-7898.46389031,0.00012999,2]
[327951653,1716697832051,-3101.04357264,0.00012999,2]
[327951654,1716697832060,-258086.46717124,0.00013,2]
[327951655,1716697832196,-315.04,0.00013,2]
[327951656,1716697832310,7523.48930144,7.45e-05,2]
[327951657,1716697832468,547850.12707182,7.45e-05,2]
[327951660,1716697837589,-3652.45937007,0.00013,2]
[327951661,1716697837844,20229.281755,7.45e-05,2]
[327951662,1716697838423,155.0,7.45e-05,2]
[327951678,1716697840188,-169.14173797,0.00011136,2]
[327951679,1716697840198,-2687.93074229,0.00013,2]
[327951680,1716697840250,-250.4005637,0.00013,2]
[327951681,1716697840818,-52467.42475648,0.00013,2]
[327951682,1716697840831,-132868.19653623,0.00013,2]
[327951683,1716697840845,-5967.7665863,0.00013,2]
[327951684,1716697840878,-2221.94984755,0.00013,2]
[327951685,1716697841943,15150.28269468,7.45e-05,2]
[327951699,1716697842524,-2267.5,0.00013,2]
[327951701,1716697842754,-623.25,0.00013,2]
[327951702,1716697842814,-1031.53958,0.00013,2]
[327951703,1716697842876,-757.79565969,0.00013,2]
[327951704,1716697842887,-1220.00000001,0.00013,2]
[327951707,1716697845499,-322.9200001,0.00013,2]
[327951708,1716697845512,-20023.10395274,0.00013,2]
[327951709,1716697845564,-7567.08157827,0.00013,2]
[327951710,1716697845628,-272.69910537,0.00013,2]
[327951711,1716697845641,-2768.85970387,0.00013,2]
[327951712,1716697845693,-1333.14755087,0.00013,2]
[327951713,1716697845706,-1303.58494265,0.00013,2]
[327951714,1716697845719,-1376.84603702,0.00013,2]
[327951715,1716697846254,-1190714.19250625,0.00013,2]
[327951716,1716697846274,-497.75,0.00013,2]
[327951717,1716697846285,-530.6,0.00013,2]
[327951718,1716697846296,-3730.04859743,0.00013,2]
[327951719,1716697846312,-1912.9668,0.00013,2]
[327951720,1716697848333,485.13688542,7.078e-05,2]
[327951721,1716697849833,6788.73278538,7.45e-05,2]
[327951722,1716697854378,155.18995208,7.45e-05,2]
[327951723,1716697854430,514309.18769813,7.45e-05,2]
[327951724,1716697854460,8200.0,7.45e-05,2]
[327951725,1716697854484,5000.0,7.45e-05,2]
[327951726,1716697854507,5000.0,7.45e-05,2]
[327951727,1716697854530,5000.0,7.45e-05,2]
[327951728,1716697854553,5000.0,7.45e-05,2]
[327951729,1716697854576,5000.0,7.45e-05,2]
[327951730,1716697877609,150.0,5e-05,2]
[327951731,1716697877630,20.9794363,5e-05,2]
[327951732,1716697930881,155.0,5e-05,2]
[327951733,1716697938017,150.0,5e-05,2]
[327951734,1716697938042,150.0,5e-05,2]
[327951735,1716697938063,62.38046027,5e-05,2]
[327951736,1716697939503,-293.4858646,7.448e-05,2]
[327951737,1716697943011,-241.59394681,7.448e-05,2]
[327951738,1716697944482,-177.67866759,7.449e-05,2]
[327951739,1716697947693,-150.0,7.449e-05,2]
[327951740,1716697948292,-150.0,7.449e-05,2]
[327951741,1716697948881,150.0,5e-05,2]
[327951742,1716697948904,5.0,5e-05,2]
[327951743,1716697948989,-150.0,7.449e-05,2]
[327951744,1716697974029,150.0,5e-05,2]
[327951745,1716697974054,122.36270278,5e-05,2]
[327951746,1716697977928,-155.0,7.447e-05,2]
[327951747,1716697977955,-17.63729722,7.447e-05,2]
[327951748,1716697979332,-150.0,7.447e-05,2]
[327951749,1716697982774,-150.0,7.447e-05,2]
[327951750,1716697983182,-150.0,7.447e-05,2]
[327951751,1716697983881,-150.0,7.447e-05,2]
[327951752,1716697987373,-150.0,7.447e-05,2]
[327951753,1716697988472,-150.0,7.447e-05,2]
[327951754,1716697988908,-150.0,7.447e-05,2]
[327951755,1716697992747,-150.0,7.447e-05,2]
[327951756,1716697994602,-150.0,7.447e-05,2]
[327951757,1716697999219,-150.0,7.447e-05,2]
[327951758,1716698002490,-150.0,7.447e-05,2]
[327951759,1716698003081,-123.80515788,7.447e-05,2]
[327951760,1716698003103,-26.19484212,7.447e-05,2]
[327951761,1716698003443,-123.80515788,7.447e-05,2]
[327951762,1716698003464,-26.19484212,7.447e-05,2]
[327951763,1716698003855,-123.80515788,7.447e-05,2]
[327951764,1716698003877,-26.19484212,7.447e-05,2]
[327951765,1716698004082,-172.16255952,7.447e-05,2]
[327951767,1716698818579,-940.27944872,5.594e-05,2]
[327951768,1716698818600,-210.49319076,5.595e-05,2]
[327951769,1716698818621,-155.0,5.595e-05,2]
[327951770,1716698818645,-3011.55636998,5.595e-05,2]
[327951771,1716698818666,-2927.95447957,5.595e-05,2]
[327951772,1716698818686,-2815.28122404,5.596e-05,2]
[327951773,1716698818708,-2188.66829677,5.596e-05,2]
[327951774,1716698818729,-290.66698873,5.596e-05,2]
[327951775,1716698818750,-290.66698873,5.596e-05,2]
[327951776,1716698818772,-43345.87584374,5.596e-05,2]
[327951777,1716698818792,-290.66698873,5.596e-05,2]
[327951778,1716698818816,-290.66698873,5.596e-05,2]
[327951779,1716698818837,-2002.70430529,5.597e-05,2]
[327951780,1716698818858,-1897.43174259,5.597e-05,2]
[327951781,1716698818878,-168.06827952,5.597e-05,2]
[327951782,1716698818899,-2330.98143457,5.597e-05,2]
[327951783,1716698818920,-1249.88651912,5.597e-05,2]
[327951784,1716698818941,-1180.6964074,5.598e-05,2]
[327951785,1716698818962,-1065.00112556,5.598e-05,2]
[327951786,1716698818982,-155.0,5.598e-05,2]
[327951787,1716698819002,-1246.26126998,5.598e-05,2]
[327951788,1716698819023,-541.55577053,5.598e-05,2]
[327951789,1716698819044,-156.28621988,5.599e-05,2]
[327951790,1716698819065,-591.05984849,5.599e-05,2]
[327951791,1716698819085,-194.52,5.6e-05,2]
[327951792,1716698819106,-150.0,6.575e-05,2]
[327951793,1716698819126,-19512.71640385,6.59e-05,2]
[327951794,1716698819146,-19512.71640385,6.59e-05,2]
[327951795,1716698819169,-19512.71640385,6.59e-05,2]
[327951796,1716698819188,-150.0,6.59e-05,2]
[327951797,1716698819210,-454.26464379,6.621e-05,2]
[327951798,1716698819230,-200.0,6.755e-05,2]
[327951799,1716698819252,-160.74,6.902e-05,2]
[327951800,1716698819273,-250.0,6.937e-05,2]
[327951801,1716698819490,-210.0,7.249e-05,2]
[327951802,1716698819512,-4601.65,7.304e-05,2]
[327951803,1716698819534,-1277.37011918,7.439e-05,2]
[327951804,1716698819555,-1381.50201327,7.439e-05,2]
[327951805,1716698819575,-1162.63382345,7.445e-05,2]
[327951806,1716698819595,-2369.82337701,7.446e-05,2]
[327951807,1716698819616,-1495.21660452,7.447e-05,2]
[327951808,1716698819636,-7523.48930144,7.447e-05,2]
[327951809,1716698819657,-946.14141461,7.447e-05,2]
[327951810,1716698819678,-20233.27559152,7.447e-05,2]
[327951811,1716698819700,-292.37690303,7.447e-05,2]
[327951812,1716698819722,-99745.1372652,7.448e-05,2]
[327951816,1716698978367,-3011.55636998,7.069e-05,2]
[327951817,1716698978394,-155.0,7.069e-05,2]
[327951818,1716698978416,-940.27944872,7.069e-05,2]
[327951819,1716698978440,-2815.28122404,7.069e-05,2]
[327951820,1716698978464,-940.27944872,7.069e-05,2]
[327951821,1716698978488,-155.0,7.07e-05,2]
[327951822,1716698978510,-2330.98143457,7.07e-05,2]
[327951823,1716698978532,-3287.82954979,7.07e-05,2]
[327951824,1716698978554,-1299.11942176,7.07e-05,2]
[327951825,1716698978577,-1246.26126998,7.071e-05,2]
[327951826,1716698978599,-2002.70430529,7.071e-05,2]
[327951827,1716698978621,-173.64356853,7.071e-05,2]
[327951828,1716698978643,-1897.43174259,7.072e-05,2]
[327951829,1716698978666,-529.79565751,7.073e-05,2]
[327951830,1716698978688,-5569.43623476,7.073e-05,2]
[327951831,1716698978710,-150.0,7.445e-05,2]
[327951832,1716698978732,-502.0,7.445e-05,2]
[327951833,1716698978754,-1073.02276091,7.446e-05,2]
[327951834,1716698978777,-5278.29883426,7.446e-05,2]
[327951835,1716698978799,-268.46488933,7.446e-05,2]
[327951836,1716698978820,-528.64494934,7.446e-05,2]
[327951837,1716698978842,-1206.57274375,7.446e-05,2]
[327951838,1716698978865,-155.0,7.446e-05,2]
[327951839,1716698978888,-290.66698873,7.446e-05,2]
[327951840,1716698978909,-543.01058165,7.446e-05,2]
[327951841,1716698978930,-210.3997843,7.447e-05,2]
[327951842,1716698978951,-156.91282772,7.447e-05,2]
[327951843,1716698978973,-2193.23303293,7.447e-05,2]
[327951844,1716698978995,-1247.61899191,7.447e-05,2]
[327951845,1716698979017,-286.26535666,7.447e-05,2]
[327951846,1716698979041,-155.33513823,7.447e-05,2]
[327951847,1716698979064,-1180.0170906,7.447e-05,2]
[327951848,1716698979090,-5052.65338742,7.447e-05,2]
[327951849,1716698979114,-155.34692868,7.447e-05,2]
[327951850,1716698979136,-7512.54631129,7.448e-05,2]
[327951851,1716698979158,-893.84788414,7.448e-05,2]
[327951852,1716698979181,-20225.28791848,7.448e-05,2]
[327951853,1716698979204,-191.39,7.448e-05,2]
[327951854,1716698979227,-614.5217579,7.448e-05,2]
[327951855,1716698979249,-123574.34216553,7.448e-05,2]
[327951862,1716699031816,-500.0,7.069e-05,2]
[327951863,1716699031828,-424.54627044,7.069e-05,2]
[327951864,1716699031840,-15.73317828,7.069e-05,2]
[327951865,1716699031849,-1133.19641733,7.074e-05,2]
[327951866,1716699031859,-1244.08827536,7.445e-05,2]
[327951867,1716699031868,-293.77949256,7.445e-05,2]
[327951868,1716699031880,-1709.90618256,7.445e-05,2]
[327951869,1716699031889,-2390.09381744,7.445e-05,2]
[327951870,1716699031995,-600.0,7.445e-05,2]
[327951871,1716699032010,-435.0,7.445e-05,2]
[327951872,1716699032022,-1984.90755681,7.445e-05,2]
[327951873,1716699032031,-155.0,7.445e-05,2]
[327951874,1716699032041,-1134.68320495,7.446e-05,2]
[327951875,1716699032050,-3119.53806689,7.446e-05,2]
[327951876,1716699032060,-1212.1890267,7.446e-05,2]
[327951877,1716699032083,-836.74867698,7.446e-05,2]
[327951878,1716699032149,-280.32647923,7.446e-05,2]
[327951879,1716699032158,-3288.44985309,7.446e-05,2]
[327951880,1716699032168,-2819.00314972,7.446e-05,2]
[327951881,1716699032177,-155.3052837,7.446e-05,2]
[327951882,1716699032187,-529.79565751,7.446e-05,2]
[327951883,1716699032196,-173.18653519,7.446e-05,2]
[327951884,1716699032206,-8603.93304236,7.447e-05,2]
[327951885,1716699032217,-271.2999999,7.447e-05,2]
[327951886,1716699032229,-291257.31996253,7.447e-05,2]
[327951888,1716699037844,-1005.43930997,7.447e-05,2]
[327951889,1716699037856,-273.9922001,7.447e-05,2]
[327951890,1716699037867,-411.655,7.447e-05,2]
[327951891,1716699037879,-417.33513399,7.447e-05,2]
[327951892,1716699037951,-361.675,7.447e-05,2]
[327951893,1716699037962,-1023.5008851,7.447e-05,2]
[327951894,1716699037973,-358.48667185,7.447e-05,2]
[327951895,1716699037984,-10000.274256,7.447e-05,2]
[327951898,1716699038319,-515.29338044,7.447e-05,2]
[327951899,1716699039145,-150.0,7.447e-05,2]
[327951903,1716699040677,-439.015,7.447e-05,2]
[327951904,1716699040689,-314419.91425194,7.447e-05,2]
[327951905,1716699040698,-171593.80122753,7.448e-05,2]
[327951906,1716699040708,-160.13196218,7.45e-05,2]
[327951907,1716699040717,-286.54771118,8e-05,2]
[327951908,1716699040726,-1543.520838,8.178e-05,2]
[327951909,1716699040735,-210.0,8.19e-05,2]
[327951910,1716699040744,-1000.0,8.219e-05,2]
[327951911,1716699040753,-178.94,8.219e-05,2]
[327951912,1716699040763,-167.01,8.219e-05,2]
[327951913,1716699040771,-760.16,8.219e-05,2]
[327951914,1716699040781,-614.52175788,8.836e-05,2]
[327951915,1716699040790,-293.0,9.008e-05,2]
[327951916,1716699040799,-1000.0,9.247e-05,2]
[327951917,1716699040808,-364.24,9.67e-05,2]
[327951918,1716699040818,-499.99,9.67e-05,2]
[327951919,1716699040827,-1386.41,9.67e-05,2]
[327951920,1716699040836,-1004.29,9.67e-05,2]
[327951921,1716699040846,-330.78,9.779e-05,2]
[327951922,1716699040855,-23900.0,9.815e-05,2]
[327951923,1716699040865,-411.0,9.909e-05,2]
[327951924,1716699040874,-250.0,9.953e-05,2]
[327951925,1716699040884,-180.68620675,0.0001,2]
[327951926,1716699040893,-325.18870715,0.0001,2]
[327951927,1716699040902,-1219.08,0.00010002,2]
[327951928,1716699040912,-614.52175788,0.00010124,2]
[327951929,1716699040922,-1198.03,0.00010274,2]
[327951930,1716699040931,-686.95,0.00010274,2]
[327951931,1716699040941,-1000.0,0.00010274,2]
[327951932,1716699040950,-167.01,0.00010274,2]
[327951933,1716699040959,-160.74,0.00010353,2]
[327951934,1716699040969,-760.16,0.00010458,2]
[327951935,1716699040978,-167.08,0.0001057,2]
[327951936,1716699040987,-576.0,0.000109,2]
[327951937,1716699040997,-843.09,0.00010959,2]
[327951938,1716699041006,-35623.72,0.00010959,2]
[327951939,1716699041015,-626.35,0.00010959,2]
[327951940,1716699041026,-521.96,0.00010959,2]
[327951941,1716699041037,-434.97,0.00010959,2]
[327951942,1716699041046,-362.47,0.00010959,2]
[327951943,1716699041055,-302.06,0.00010959,2]
[327951944,1716699041067,-251.72,0.00010959,2]
[327951945,1716699041077,-209.76,0.00010959,2]
[327951946,1716699041086,-748.11278703,0.00011,2]
[327951947,1716699041097,-180.29542111,0.00011,2]
[327951948,1716699041106,-1000.0,0.00011301,2]
[327951949,1716699041115,-614.52175788,0.00011512,2]
[327951950,1716699041125,-171.24,0.00011542,2]
[327951951,1716699041134,-806.0,0.0001199,2]
[327951952,1716699041143,-1000.0,0.00012,2]
[327951953,1716699041153,-2608.61583779,0.00012,2]
[327951954,1716699041164,-151.93,0.00012,2]
[327951955,1716699041173,-174.38,0.00012033,2]
[327951956,1716699041183,-1000.0,0.00012329,2]
[327951957,1716699041193,-167.01,0.00012329,2]
[327951958,1716699041202,-760.16,0.00012696,2]
[327951959,1716699041211,-2395.31224,0.0001287,2]
[327951960,1716699041220,-1475.33613403,0.0001287,2]
[327951961,1716699041230,-1054.09469297,0.000129,2]
[327951962,1716699041240,-614.52175788,0.000129,2]
[327951963,1716699041249,-377.35828276,0.000129,2]
[327951964,1716699041259,-309.72240556,0.000129,2]
[327951965,1716699041268,-298.94847222,0.00012998,2]
[327951966,1716699041277,-345.58114338,0.00012998,2]
[327951967,1716699041287,-201.08302351,0.00012998,2]
[327951968,1716699041297,-155.0,0.00012998,2]
[327951969,1716699041306,-299.78947746,0.00012998,2]
[327951970,1716699041315,-166.31828165,0.00012998,2]
[327951971,1716699041325,-208.55294328,0.00012998,2]
[327951972,1716699041335,-156.10569802,0.00012998,2]
[327951973,1716699041344,-155.10286068,0.00012998,2]
[327951974,1716699041354,-181.48250616,0.00012998,2]
[327951975,1716699041364,-162.15064589,0.00012998,2]
[327951976,1716699041374,-307.00939224,0.00012998,2]
[327951977,1716699041384,-786.0266217,0.00012998,2]
[327951978,1716699041393,-200.49085881,0.00012998,2]
[327951979,1716699041409,-156.84560055,0.00012998,2]
[327951980,1716699041418,-222.10701017,0.00012998,2]
[327951981,1716699041427,-155.45609756,0.00012998,2]
[327951982,1716699041437,-156.36290277,0.00012998,2]
[327951983,1716699041448,-157.85311578,0.00012998,2]
[327951984,1716699041458,-411.79929221,0.00012998,2]
[327951985,1716699041468,-156.16579106,0.00012998,2]
[327951986,1716699041480,-155.28971526,0.00012998,2]
[327951987,1716699041489,-166.190171,0.00012998,2]
[327951988,1716699041499,-716.17121987,0.00012998,2]
[327951989,1716699041508,-160.5660986,0.00012998,2]
[327951990,1716699041519,-289.71186772,0.00012998,2]
[327951991,1716699041530,-163.51933111,0.00012998,2]
[327951992,1716699041539,-206.49658015,0.00012998,2]
[327951993,1716699041549,-155.67261779,0.00012998,2]